bitfinex-derivatives/quotes_BNBF0:USTF0_20251002
["timestamp","ask_amount","ask_price","bid_price","bid_amount"]
[1759434135612,0.55071081,1073.8,1070.7,2.07886106]
[1759434135809,0.83543447,1074.4,1070.7,2.07886106]
[1759434135810,0.55071081,1073.7,1070.7,2.07886106]
[1759434136013,0.55071081,1073.6,1070.7,2.07886106]
[1759434136212,0.83543447,1074.2,1070.7,2.07886106]
[1759434136412,0.55060768,1074.1,1070.7,2.07886106]
[1759434136608,0.55060768,1074.0,1071.2,2.07886106]
[1759434136909,0.55060768,1073.9,1071.2,2.07886106]
[1759434137109,0.55060768,1073.8,1071.2,2.07886106]
[1759434137312,0.55060768,1073.7,1071.2,2.07886106]
[1759434137511,0.55060768,1073.6,1071.1,2.07886106]
[1759434137811,0.83543447,1074.2,1071.1,2.07886106]
[1759434138009,0.55048053,1074.1,1071.3,2.07886106]
[1759434138206,0.55048053,1074.0,1071.3,2.07886106]
[1759434138408,0.55048053,1073.9,1071.3,2.07886106]
[1759434138707,0.55048053,1073.8,1071.1,2.07886106]
[1759434138911,0.55048053,1073.7,1071.1,2.07886106]
[1759434139107,0.55048053,1073.6,1071.1,2.07886106]
[1759434139312,0.83543447,1074.2,1071.1,2.07886106]
[1759434139512,0.55025499,1074.1,1071.1,2.07886106]
[1759434139812,0.55025499,1074.0,1071.1,2.07886106]
[1759434140007,0.55025499,1073.9,1071.1,2.07886106]
[1759434140207,0.55025499,1073.8,1071.1,2.07886106]
[1759434140511,0.55025499,1073.7,1071.1,2.07886106]
[1759434140710,0.55025499,1073.7,1070.6,2.91147655]
[1759434140711,0.55025499,1073.6,1071.0,2.07886106]
[1759434140908,0.83543447,1074.2,1071.0,2.07886106]
[1759434141107,0.55015439,1074.1,1071.0,2.07886106]
[1759434141311,0.55015439,1074.0,1071.0,2.07886106]
[1759434141508,0.55015439,1073.9,1071.0,2.07886106]
[1759434141713,0.55015439,1073.8,1070.5,2.07886106]
[1759434141914,0.55015439,1073.7,1070.5,2.07886106]
[1759434142210,0.55015439,1073.6,1070.5,2.07886106]
[1759434142408,0.83543447,1074.4,1070.5,2.07886106]
[1759434142613,0.54997043,1074.3,1070.5,2.07886106]
[1759434142813,0.54997043,1074.2,1070.5,2.07886106]
[1759434143112,0.54997043,1074.1,1070.5,2.07886106]
[1759434143308,0.83543447,1074.4,1070.5,2.07886106]
[1759434143309,0.54997043,1074.0,1070.5,2.07886106]
[1759434143510,0.54997043,1073.9,1070.5,2.07886106]
[1759434143714,0.54997043,1073.8,1070.9,2.07886106]
[1759434143914,0.54997043,1073.7,1070.9,2.07886106]
[1759434144110,0.54997043,1073.6,1070.9,2.07886106]
[1759434144411,0.54997043,1073.5,1070.8,2.07886106]
[1759434144713,0.54993148,1073.4,1070.8,2.07886106]
[1759434145010,0.83543447,1073.9,1071.2,2.07886106]
[1759434145213,0.54993148,1073.8,1071.2,2.07886106]
[1759434145410,0.54993148,1073.7,1071.1,2.07886106]
[1759434145610,0.54993148,1073.6,1071.1,2.07886106]
[1759434145913,0.54993148,1073.5,1071.1,2.07886106]
[1759434146114,0.83543447,1074.0,1071.1,2.07886106]
[1759434146310,0.54986868,1073.9,1071.1,2.07886106]
[1759434146513,0.54986868,1073.8,1071.1,2.07886106]
[1759434146714,0.54986868,1073.7,1071.1,2.07886106]
[1759434147010,0.54986868,1073.6,1071.1,2.07886106]
[1759434147208,0.83543447,1074.0,1071.1,2.07886106]
[1759434147209,0.54986868,1073.5,1071.1,2.07886106]
[1759434147414,0.83543447,1074.1,1070.8,2.07886106]
[1759434147615,0.54985869,1074.0,1070.8,2.07886106]
[1759434147811,0.54985869,1073.9,1070.8,2.07886106]
[1759434148011,0.54985869,1073.8,1070.8,2.07886106]
[1759434148312,0.54985869,1073.7,1070.8,2.07886106]
[1759434148515,0.54985869,1073.6,1070.8,2.07886106]
[1759434148811,0.54985869,1073.5,1070.8,2.07886106]
[1759434149014,0.83543447,1074.1,1070.8,2.07886106]
[1759434149215,0.54984044,1074.0,1070.8,2.07886106]
[1759434149415,0.54984044,1073.9,1070.8,2.07886106]
[1759434149611,0.54984044,1073.8,1070.8,2.07886106]
[1759434149813,0.54984044,1073.7,1070.8,2.07886106]
[1759434150014,0.54984044,1073.6,1070.8,2.07886106]
[1759434150216,0.54984044,1073.5,1070.8,2.07886106]
[1759434150421,0.83543447,1074.1,1070.8,2.07886106]
[1759434150617,0.54984227,1074.0,1070.8,2.07886106]
[1759434150816,0.54984227,1073.9,1070.8,2.07886106]
[1759434151019,0.54984227,1073.8,1070.8,2.07886106]
[1759434151217,0.54984227,1073.7,1070.8,2.07886106]
[1759434151521,0.54984227,1073.6,1070.5,2.07886106]
[1759434151818,0.54984227,1073.5,1070.5,2.07886106]
[1759434152015,0.83543447,1074.2,1070.5,2.07886106]
[1759434152016,0.54984227,1073.4,1070.5,2.07886106]
[1759434152216,0.83543447,1074.2,1070.5,2.07886106]
[1759434152417,0.54985387,1074.1,1070.5,2.07886106]
[1759434152717,0.54985387,1074.0,1070.5,2.07886106]
[1759434152920,0.54985387,1073.9,1070.5,2.07886106]
[1759434153118,0.54985387,1073.8,1070.5,2.07886106]
[1759434153317,0.54985387,1073.7,1070.5,2.07886106]
[1759434153518,0.54985387,1073.6,1070.5,2.07886106]
[1759434153718,0.54985387,1073.5,1070.5,2.07886106]
[1759434153921,0.83543447,1074.2,1070.5,2.08286106]
[1759434154218,0.83543447,1074.2,1070.6,1.8390277]
[1759434154219,0.5498603,1074.1,1070.6,1.8390277]
[1759434154417,0.5498603,1074.0,1070.6,1.8390277]
[1759434154721,0.5498603,1073.9,1070.6,1.8390277]
[1759434154921,0.5498603,1073.8,1070.6,1.8390277]
[1759434155119,0.5498603,1073.7,1070.6,1.8390277]
[1759434155317,0.83543447,1074.2,1070.6,1.8390277]
[1759434155318,0.5498603,1073.6,1070.6,1.8390277]
[1759434155617,0.5498603,1073.5,1070.6,1.8390277]
[1759434155818,0.83543447,1074.2,1070.6,1.8390277]
[1759434156017,0.54987934,1074.1,1070.6,1.8390277]
[1759434156222,0.54987934,1074.0,1070.6,1.8390277]
[1759434156421,0.54987934,1073.9,1070.6,1.8390277]
[1759434156623,0.54987934,1073.8,1070.6,1.8390277]
[1759434156919,0.54987934,1073.7,1070.6,1.8390277]
[1759434157123,0.54987934,1073.6,1070.6,1.8390277]
[1759434157323,0.54987934,1073.5,1070.6,1.8390277]
[1759434157621,0.83543447,1074.2,1070.6,1.8390277]
[1759434157819,0.54989454,1074.1,1070.6,3.91788876]
[1759434158023,0.54989454,1074.0,1070.6,3.91788876]
[1759434158219,0.54989454,1073.9,1070.6,3.91788876]
[1759434158419,0.54989454,1073.8,1070.6,3.91788876]
[1759434158619,0.54989454,1073.7,1070.6,3.91788876]
[1759434158819,0.16210891,1075.0,1070.6,3.91788876]
[1759434158820,0.54989454,1073.6,1070.6,1.8390277]
[1759434159024,0.54989454,1073.5,1070.8,2.07886106]
[1759434159223,0.54989454,1073.4,1070.8,2.07886106]
[1759434159420,0.54989454,1073.3,1070.8,2.07886106]
[1759434159625,0.54989454,1073.2,1070.8,2.07886106]
[1759434159824,0.83543447,1073.7,1070.8,2.07886106]
[1759434160025,0.55011746,1073.6,1070.9,2.07886106]
[1759434160325,0.55011746,1073.5,1070.9,2.07886106]
[1759434160620,0.55011746,1073.4,1070.8,2.07886106]
[1759434160824,0.55011746,1073.3,1070.8,2.07886106]
[1759434161025,0.55011746,1073.2,1070.8,2.07886106]
[1759434161222,0.83543447,1073.7,1070.8,2.07886106]
[1759434161524,0.55038256,1073.6,1070.8,2.07886106]
[1759434161722,0.55038256,1073.5,1070.9,2.07886106]
[1759434161925,0.55038256,1073.4,1070.9,2.07886106]
[1759434162122,0.55038256,1073.3,1070.9,2.07886106]
[1759434162322,0.83543447,1073.9,1070.9,2.07886106]
[1759434162525,0.55061477,1073.8,1070.9,2.07886106]
[1759434162725,0.55061477,1073.7,1071.0,2.07886106]
[1759434162926,0.55061477,1073.6,1071.0,2.07886106]
[1759434163121,0.55061477,1073.5,1071.3,2.07886106]
[1759434163322,0.55061477,1073.4,1071.3,2.07886106]
[1759434163523,0.83543447,1073.9,1071.3,2.07886106]
[1759434163721,0.55082047,1073.8,1071.3,2.07886106]
[1759434163926,0.55082047,1073.7,1071.3,2.07886106]
[1759434164128,0.55082047,1073.6,1071.2,2.07886106]
[1759434164328,0.55082047,1073.5,1071.2,2.07886106]
[1759434164622,0.55082047,1073.4,1071.2,2.07886106]
[1759434164828,0.83543447,1073.9,1071.3,2.07886106]
[1759434165026,0.55037341,1073.8,1071.3,2.07886106]
[1759434165224,0.55037341,1073.7,1071.3,2.07886106]
[1759434165428,0.55037341,1073.6,1071.3,2.07886106]
[1759434165629,0.55037341,1073.5,1071.3,2.07886106]
[1759434165825,0.55037341,1073.4,1071.0,2.07886106]
[1759434166029,0.83543447,1074.1,1071.0,2.07886106]
[1759434166230,0.5503909,1074.0,1070.9,2.07886106]
[1759434166426,0.5503909,1073.9,1070.9,2.07886106]
[1759434166631,0.5503909,1073.8,1070.9,2.07886106]
[1759434166930,0.5503909,1073.7,1071.0,2.07886106]
[1759434167131,0.5503909,1073.6,1071.0,2.07886106]
[1759434167329,0.5503909,1073.5,1070.9,2.07886106]
[1759434167528,0.5503909,1073.4,1070.9,2.07886106]
[1759434167727,0.83543447,1074.0,1070.9,2.07886106]
[1759434167928,0.55048242,1073.9,1070.9,2.07886106]
[1759434168133,0.55048242,1073.8,1070.9,2.07886106]
[1759434168327,0.55048242,1073.7,1070.9,2.07886106]
[1759434168629,0.55048242,1073.6,1070.9,2.07886106]
[1759434168828,0.55048242,1073.5,1070.9,2.07886106]
[1759434169032,0.55048242,1073.4,1070.9,2.07886106]
[1759434169233,0.83543447,1074.0,1070.9,2.07886106]
[1759434169433,0.55057819,1073.9,1070.9,2.07886106]
[1759434169629,0.55057819,1073.8,1070.9,2.07886106]
[1759434169827,0.55057819,1073.7,1070.9,2.07886106]
[1759434170029,0.55057819,1073.6,1071.1,2.07886106]
[1759434170331,0.55057819,1073.5,1071.1,2.07886106]
[1759434170533,0.55057819,1073.4,1071.1,2.07886106]
[1759434170734,0.83543447,1074.0,1071.1,2.07886106]
[1759434170933,0.5506155,1073.9,1071.4,2.07886106]
[1759434171136,0.5506155,1073.8,1071.4,2.07886106]
[1759434171437,0.5506155,1073.7,1071.4,2.07886106]
[1759434171635,0.5506155,1073.6,1071.4,2.07886106]
[1759434171835,0.5506155,1073.5,1071.4,2.07886106]
[1759434172032,0.83543447,1074.0,1071.4,2.07886106]
[1759434172235,0.55066821,1073.9,1071.4,2.07886106]
[1759434172435,0.55066821,1073.8,1071.4,2.07886106]
[1759434172635,0.55066821,1073.7,1071.3,2.07886106]
[1759434172934,0.55066821,1073.6,1071.3,2.07886106]
[1759434173136,0.55066821,1073.5,1071.1,2.07886106]
[1759434173332,0.83543447,1074.1,1071.1,2.07886106]
[1759434173535,0.55082894,1074.0,1071.1,2.07886106]
[1759434173731,0.55082894,1073.9,1071.1,2.07886106]
[1759434174032,0.55082894,1073.8,1071.1,2.07886106]
[1759434174232,0.55082894,1073.7,1071.1,2.07886106]
[1759434174533,0.55082894,1073.6,1071.1,2.07886106]
[1759434174736,0.55082894,1073.5,1071.1,2.07886106]
[1759434174934,0.55082894,1073.4,1071.1,2.07886106]
[1759434175234,0.83543447,1074.1,1071.2,2.07886106]
[1759434175538,1.38644218,1074.0,1071.2,2.07886106]
[1759434175732,0.55100771,1073.9,1071.2,2.07886106]
[1759434175938,0.55100771,1073.8,1071.2,2.07886106]
[1759434176136,0.55100771,1073.7,1071.1,2.07886106]
[1759434176339,0.55100771,1073.6,1071.1,2.07886106]
[1759434176536,0.55100771,1073.5,1071.1,2.07886106]
[1759434176736,0.55100771,1073.4,1071.1,2.07886106]
[1759434177036,0.55100771,1073.3,1071.1,2.07886106]
[1759434177336,0.83543447,1073.9,1071.2,2.07886106]
[1759434177541,0.5512595,1073.8,1071.2,2.07886106]
[1759434177744,0.5512595,1073.8,1070.6,1.8390277]
[1759434177745,0.5512595,1073.7,1071.3,2.07886106]
[1759434177936,0.5512595,1073.6,1071.3,2.07886106]
[1759434178141,0.5512595,1073.5,1071.3,2.07886106]
[1759434178339,0.5512595,1073.4,1071.3,2.07886106]
[1759434178542,0.5512595,1073.3,1071.3,2.07886106]
[1759434178837,0.83543447,1073.8,1071.3,2.07886106]
[1759434179042,0.5513637,1073.7,1071.3,2.07886106]
[1759434179240,0.5513637,1073.6,1071.3,2.07886106]
[1759434179438,0.5513637,1073.5,1071.3,2.07886106]
[1759434179641,0.5513637,1073.4,1071.3,2.07886106]
[1759434179838,0.5513637,1073.3,1071.3,2.07886106]
[1759434180042,0.83543447,1073.8,1071.3,2.07886106]
[1759434180242,0.55148654,1073.7,1071.2,2.07886106]
[1759434180439,0.55148654,1073.6,1071.2,2.07886106]
[1759434180739,0.55148654,1073.5,1071.2,2.07886106]
[1759434180946,0.55148654,1073.4,1071.2,2.07886106]
[1759434181247,0.55148654,1073.3,1071.2,2.07886106]
[1759434181448,0.83543447,1073.9,1071.2,2.07886106]
[1759434181651,0.55161151,1073.8,1071.2,2.07886106]
[1759434181851,0.55161151,1073.7,1071.2,2.07886106]
[1759434182049,0.55161151,1073.6,1071.2,2.07886106]
[1759434182247,0.55161151,1073.5,1071.2,2.07886106]
[1759434182447,0.55161151,1073.4,1070.8,4.99033761]
[1759434182652,0.55161151,1073.3,1070.8,4.99033761]
[1759434182952,0.55161151,1073.2,1070.8,2.07886106]
[1759434183247,0.55161151,1073.1,1070.8,2.07886106]
[1759434183448,0.83543447,1073.8,1070.8,2.07886106]
[1759434183651,0.55190438,1073.7,1070.8,2.07886106]
[1759434183852,0.55190438,1073.6,1070.8,2.07886106]
[1759434184051,0.55190438,1073.5,1070.7,2.07886106]
[1759434184250,0.55190438,1073.4,1070.7,2.07886106]
[1759434184453,0.55190438,1073.3,1070.7,2.07886106]
[1759434184654,0.55190438,1073.2,1070.7,2.07886106]
[1759434184851,0.55190438,1073.1,1070.7,2.07886106]
[1759434185055,0.83543447,1073.8,1070.8,2.07886106]
[1759434185354,0.55195599,1073.7,1070.8,2.07886106]
[1759434185550,0.55195599,1073.6,1071.2,2.07886106]
[1759434185751,0.55195599,1073.5,1071.2,2.07886106]
[1759434186052,0.55195599,1073.4,1071.2,2.07886106]
[1759434186254,0.55195599,1073.3,1071.1,2.07886106]
[1759434186451,0.83543447,1073.9,1071.1,2.07886106]
[1759434186756,0.55206991,1073.8,1071.3,2.07886106]
[1759434187051,0.55206991,1073.7,1071.3,2.07886106]
[1759434187255,0.55206991,1073.6,1071.3,2.07886106]
[1759434187454,0.55206991,1073.5,1071.3,2.07886106]
[1759434187653,0.83543447,1074.0,1071.3,2.07886106]
[1759434187654,0.55206991,1073.4,1071.3,2.07886106]
[1759434187854,0.55206991,1073.3,1071.3,2.07886106]
[1759434188052,0.83543447,1074.0,1071.3,2.07886106]
[1759434188353,0.55203727,1073.9,1071.3,2.07886106]
[1759434188552,0.55203727,1073.8,1071.3,2.07886106]
[1759434188756,0.55203727,1073.7,1071.3,2.07886106]
[1759434188953,0.55203727,1073.6,1071.3,2.07886106]
[1759434189253,0.55203727,1073.5,1071.2,2.07886106]
[1759434189454,0.55203727,1073.4,1071.2,2.07886106]
[1759434189653,0.55203727,1073.3,1071.2,2.07886106]
[1759434189852,0.83543447,1074.0,1071.2,2.07886106]
[1759434190054,0.55209183,1073.9,1071.2,2.07886106]
[1759434190256,0.55209183,1073.8,1071.2,2.07886106]
[1759434190454,0.55209183,1073.7,1071.3,2.07886106]
[1759434190652,0.55209183,1073.6,1071.3,2.07886106]
[1759434190854,0.55209183,1073.5,1071.3,2.07886106]
[1759434191155,0.55209183,1073.4,1071.3,2.07886106]
[1759434191354,0.55209183,1073.3,1071.3,2.07886106]
[1759434191554,0.83543447,1074.0,1071.3,2.07886106]
[1759434191855,0.55215537,1073.9,1071.3,2.07886106]
[1759434192053,0.55215537,1073.8,1071.3,2.07886106]
[1759434192356,0.55215537,1073.7,1071.3,2.07886106]
[1759434192556,0.55215537,1073.6,1071.3,2.07886106]
[1759434192753,0.55215537,1073.5,1071.3,2.07886106]
[1759434192958,0.55215537,1073.4,1071.2,2.07886106]
[1759434193155,0.55215537,1073.3,1071.2,2.07886106]
[1759434193358,0.83543447,1074.0,1071.2,2.07886106]
[1759434193558,0.55222564,1073.9,1071.2,2.07886106]
[1759434193854,0.55222564,1073.8,1071.2,2.07886106]
[1759434194058,0.55222564,1073.7,1071.2,2.07886106]
[1759434194258,0.55222564,1073.6,1071.2,2.07886106]
[1759434194456,0.55222564,1073.5,1071.2,2.07886106]
[1759434194756,0.55222564,1073.4,1071.2,2.07886106]
[1759434194954,0.55222564,1073.3,1071.2,2.07886106]
[1759434195156,0.83543447,1074.0,1071.2,2.07886106]
[1759434195359,0.55181162,1073.9,1071.2,2.07886106]
[1759434195554,0.55181162,1073.8,1071.2,2.07886106]
[1759434195754,0.55181162,1073.7,1071.2,2.07886106]
[1759434196059,0.55181162,1073.6,1071.2,2.07886106]
[1759434196256,0.55181162,1073.5,1071.2,2.07886106]
[1759434196459,0.55181162,1073.4,1071.2,2.07886106]
[1759434196656,0.55181162,1073.3,1071.4,2.07886106]
[1759434196860,0.55181162,1073.2,1071.4,2.07886106]
[1759434197160,0.83543447,1073.7,1071.4,2.07886106]
[1759434197460,0.55195724,1073.6,1071.4,2.07886106]
[1759434197760,0.55195724,1073.5,1071.4,2.07886106]
[1759434197962,0.55195724,1073.4,1071.4,2.07886106]
[1759434198161,0.55195724,1073.3,1071.1,2.07886106]
[1759434198458,0.55195724,1073.2,1071.1,2.07886106]
[1759434198657,0.83543447,1073.9,1070.9,2.07886106]
[1759434198957,0.55200574,1073.8,1070.9,2.07886106]
[1759434199160,0.55200574,1073.7,1070.8,2.07886106]
[1759434199357,0.55200574,1073.6,1070.8,2.07886106]
[1759434199660,0.55200574,1073.5,1070.8,2.07886106]
[1759434199858,0.55200574,1073.4,1070.8,2.07886106]
[1759434200056,0.55200574,1073.3,1070.8,2.07886106]
[1759434200358,0.55200574,1073.2,1070.8,2.07886106]
[1759434200657,0.55200574,1073.1,1070.8,2.07886106]
[1759434200858,0.83543447,1073.9,1070.8,2.07886106]
[1759434201056,0.55208301,1073.8,1070.8,2.07886106]
[1759434201259,0.55208301,1073.7,1070.8,2.07886106]
[1759434201561,0.55208301,1073.6,1070.8,2.07886106]
[1759434201761,0.55208301,1073.5,1070.7,2.07886106]
[1759434202058,0.55208301,1073.4,1070.7,2.07886106]
[1759434202261,0.55208301,1073.3,1070.7,2.07886106]
[1759434202459,0.55208301,1073.2,1070.7,2.07886106]
[1759434202660,0.55208301,1073.1,1070.7,2.07886106]
[1759434202863,0.83543447,1073.8,1070.8,2.07886106]
[1759434203062,0.55218675,1073.7,1070.8,2.07886106]
[1759434203362,0.55218675,1073.6,1070.9,2.07886106]
[1759434203563,0.55218675,1073.5,1070.9,2.07886106]
[1759434203863,0.55218675,1073.4,1070.8,2.07886106]
[1759434204063,0.55218675,1073.3,1070.8,2.07886106]
[1759434204257,0.55218675,1073.2,1070.8,2.07886106]
[1759434204463,0.55218675,1073.1,1070.8,2.07886106]
[1759434204664,0.55218675,1073.0,1070.7,2.07886106]
[1759434204859,0.55218675,1072.9,1070.7,2.07886106]
[1759434205064,0.83543447,1073.6,1070.7,2.07886106]
[1759434205364,0.83543447,1073.4,1070.7,2.07886106]
[1759434205561,0.55230195,1073.3,1071.3,2.07886106]
[1759434205764,0.55230195,1073.2,1071.3,2.07886106]
[1759434205965,0.55230195,1073.1,1071.3,2.07886106]
[1759434206262,0.55230195,1073.0,1070.9,2.91147655]
[1759434206465,0.55230195,1072.9,1070.9,2.91147655]
[1759434206663,0.55230195,1072.8,1070.9,2.91147655]
[1759434206863,0.83543447,1073.5,1070.6,3.91788876]
[1759434207062,0.55199429,1073.4,1070.6,3.91788876]
[1759434207267,0.55199429,1073.3,1070.6,3.91788876]
[1759434207466,0.55199429,1073.2,1070.6,3.91788876]
[1759434207666,0.55199429,1073.1,1070.6,3.91788876]
[1759434207867,0.55199429,1073.0,1070.6,3.91788876]
[1759434208162,0.55199429,1072.9,1070.6,3.91788876]
[1759434208367,0.55199429,1072.8,1070.6,1.8390277]
[1759434208568,0.83543447,1073.5,1070.6,1.8390277]
[1759434208868,1.38704278,1073.4,1070.6,1.8390277]
[1759434209062,0.55160831,1073.3,1070.6,1.8390277]
[1759434209267,0.55160831,1073.2,1070.6,1.8390277]
[1759434209463,0.55160831,1073.1,1070.6,1.8390277]
[1759434209663,0.55160831,1073.0,1070.6,1.8390277]
[1759434209866,0.55160831,1072.9,1070.6,1.8390277]
[1759434210068,0.55160831,1072.8,1070.6,1.8390277]
[1759434210269,0.83543447,1073.5,1070.6,1.8390277]
[1759434210465,0.55120164,1073.4,1070.6,1.8390277]
[1759434210766,0.55120164,1073.3,1070.6,1.8390277]
[1759434210968,0.55120164,1073.2,1070.6,1.8390277]
[1759434211167,0.55120164,1073.1,1070.6,1.8390277]
[1759434211366,0.55120164,1073.0,1070.6,1.8390277]
[1759434211568,0.55120164,1072.9,1070.6,3.91788876]
[1759434211765,0.55120164,1072.8,1070.6,3.91788876]
[1759434211970,0.83543447,1073.4,1070.6,3.91788876]
[1759434212170,0.5510364,1073.3,1070.6,3.91788876]
[1759434212369,0.5510364,1073.2,1070.6,3.91788876]
[1759434212569,0.5510364,1073.1,1070.6,3.91788876]
[1759434212770,0.5510364,1073.0,1070.6,3.91788876]
[1759434212970,0.5510364,1072.9,1070.6,3.91788876]
[1759434213272,0.5510364,1072.8,1070.6,3.91788876]
[1759434213470,0.83543447,1073.5,1070.6,3.91788876]
[1759434213671,0.55075401,1073.4,1070.6,1.8390277]
[1759434213966,0.55075401,1073.3,1070.6,1.8390277]
[1759434214167,0.55075401,1073.2,1070.6,1.8390277]
[1759434214473,0.55075401,1073.1,1070.6,1.8390277]
[1759434214673,0.55075401,1073.0,1070.6,3.91788876]
[1759434214969,0.83543447,1073.5,1070.6,3.91788876]
[1759434214970,0.55075401,1072.9,1070.6,3.91788876]
[1759434215169,0.55075401,1072.8,1070.6,3.91788876]
[1759434215372,0.83543447,1073.5,1070.6,3.91788876]
[1759434215570,0.55053387,1073.4,1070.6,1.8390277]
[1759434215868,0.55053387,1073.3,1070.6,1.8390277]
[1759434216071,0.55053387,1073.2,1070.6,3.91788876]
[1759434216271,0.55053387,1073.1,1070.6,3.91788876]
[1759434216470,0.55053387,1073.0,1070.6,3.91788876]
[1759434216769,0.55053387,1072.9,1070.7,2.07886106]
[1759434216973,0.83543447,1073.4,1070.7,2.07886106]
[1759434217168,0.55043829,1073.3,1070.7,2.07886106]
[1759434217372,0.55043829,1073.2,1070.7,2.07886106]
[1759434217573,0.55043829,1073.1,1070.7,2.07886106]
[1759434217873,0.55043829,1073.0,1070.6,3.91788876]
[1759434218170,0.55043829,1072.9,1070.6,3.91788876]
[1759434218472,0.83543447,1073.4,1070.6,3.91788876]
[1759434218673,0.55029035,1073.3,1070.6,3.91788876]
[1759434218969,0.83543447,1073.4,1070.7,2.07886106]
[1759434218970,0.55029035,1073.2,1070.7,2.07886106]
[1759434219170,0.55029035,1073.1,1070.7,2.07886106]
[1759434219369,0.55029035,1073.0,1070.7,2.07886106]
[1759434219572,0.55029035,1072.9,1070.7,2.07886106]
[1759434219773,0.83543447,1073.4,1070.7,2.07886106]
[1759434219973,0.55020121,1073.3,1070.7,2.07886106]
[1759434220272,0.55020121,1073.2,1070.7,2.07886106]
[1759434220470,0.55020121,1073.1,1070.7,2.07886106]
[1759434220670,0.55020121,1073.0,1070.7,2.07886106]
[1759434220871,0.55020121,1072.9,1070.6,3.91788876]
[1759434221071,0.83543447,1073.4,1070.6,3.91788876]
[1759434221275,0.55011902,1073.3,1070.6,3.91788876]
[1759434221473,0.55011902,1073.2,1070.6,1.8390277]
[1759434221676,0.55011902,1073.1,1070.6,1.8390277]
[1759434221877,0.55011902,1073.0,1070.6,1.8390277]
[1759434222175,0.83543447,1073.4,1070.6,1.8390277]
[1759434222176,0.55011902,1072.9,1070.6,1.8390277]
[1759434222374,0.83543447,1073.4,1070.6,1.8390277]
[1759434222573,0.54995698,1073.3,1070.6,1.8390277]
[1759434222777,0.54995698,1073.2,1070.6,1.8390277]
[1759434223078,0.54995698,1073.1,1070.6,1.8390277]
[1759434223277,0.54995698,1073.0,1070.6,1.8390277]
[1759434223574,0.54995698,1072.9,1070.6,1.8390277]
[1759434223774,0.83543447,1073.4,1070.6,1.8390277]
[1759434223977,0.54988611,1073.3,1070.6,1.8390277]
[1759434224272,0.54988611,1073.2,1070.6,1.8390277]
[1759434224473,0.54988611,1073.1,1070.6,1.8390277]
[1759434224675,0.54988611,1073.0,1070.6,1.8390277]
[1759434224874,0.54988611,1072.9,1070.6,1.8390277]
[1759434225077,0.83543447,1073.5,1070.6,1.8390277]
[1759434225372,0.54992294,1073.4,1070.6,1.8390277]
[1759434225577,0.54992294,1073.3,1070.6,1.8390277]
[1759434225778,0.54992294,1073.2,1070.6,1.8390277]
[1759434225975,0.54992294,1073.1,1070.6,1.8390277]
[1759434226175,0.54992294,1073.0,1070.6,1.8390277]
[1759434226374,0.83543447,1073.6,1070.6,1.8390277]
[1759434226375,0.54992294,1072.9,1070.6,1.8390277]
[1759434226573,0.83543447,1073.6,1070.6,1.8390277]
[1759434226873,0.54985358,1073.5,1070.6,1.8390277]
[1759434227075,0.54985358,1073.4,1070.6,1.8390277]
[1759434227277,0.54985358,1073.3,1070.6,1.8390277]
[1759434227476,0.54985358,1073.2,1070.6,1.8390277]
[1759434227680,0.54985358,1073.1,1070.6,1.8390277]
[1759434227877,0.54985358,1073.0,1070.6,1.8390277]
[1759434228074,0.54985358,1072.9,1070.6,1.8390277]
[1759434228277,0.83543447,1073.6,1070.6,1.8390277]
[1759434228481,0.54979375,1073.5,1070.6,1.8390277]
[1759434228677,0.54979375,1073.4,1070.6,1.8390277]
[1759434228979,0.54979375,1073.3,1070.6,1.8390277]
[1759434229179,0.54979375,1073.2,1070.6,1.8390277]
[1759434229378,0.54979375,1073.1,1070.6,1.8390277]
[1759434229576,0.54979375,1073.0,1070.6,1.8390277]
[1759434229881,0.54979375,1072.9,1070.6,1.8390277]
[1759434230181,0.83543447,1073.7,1070.6,1.8390277]
[1759434230382,1.38519431,1073.6,1070.6,1.8390277]
[1759434230680,0.54975984,1073.5,1070.6,1.8390277]
[1759434230878,0.54975984,1073.4,1070.6,1.8390277]
[1759434231076,0.54975984,1073.3,1070.6,1.8390277]
[1759434231378,0.54975984,1073.2,1070.6,1.8390277]
[1759434231580,0.54975984,1073.1,1070.6,1.8390277]
[1759434231782,0.54975984,1073.0,1070.6,1.8390277]
[1759434231977,0.54975984,1072.9,1070.6,1.8390277]
[1759434232178,0.54975984,1072.8,1070.6,1.8390277]
[1759434232478,0.83543447,1073.8,1070.6,1.8390277]
[1759434232678,0.54979372,1073.7,1070.6,1.8390277]
[1759434232880,0.54979372,1073.6,1070.6,1.8390277]
[1759434233078,0.54979372,1073.5,1070.6,1.8390277]
[1759434233277,0.54979372,1073.4,1070.6,1.8390277]
[1759434233482,0.54979372,1073.3,1070.6,1.8390277]
[1759434233681,0.54979372,1073.2,1070.6,1.8390277]
[1759434233880,0.54979372,1073.1,1070.6,1.8390277]
[1759434234177,0.54979372,1073.0,1070.6,1.8390277]
[1759434234480,0.54979372,1072.9,1070.6,1.8390277]
[1759434234777,0.54979372,1072.8,1070.6,1.8390277]
[1759434234982,0.83543447,1073.5,1070.6,1.8390277]
[1759434235182,0.549788,1073.4,1070.6,1.8390277]
[1759434235382,0.549788,1073.3,1070.6,1.8390277]
[1759434235676,0.549788,1073.2,1070.6,1.8390277]
[1759434235882,0.549788,1073.1,1070.6,1.8390277]
[1759434236182,0.549788,1073.0,1070.6,1.8390277]
[1759434236482,0.549788,1072.9,1070.6,1.8390277]
[1759434236682,0.83543447,1073.5,1070.6,1.8390277]
[1759434236879,0.54981482,1073.4,1070.6,1.8390277]
[1759434237077,0.54981482,1073.3,1070.6,1.8390277]
[1759434237378,0.54981482,1073.2,1070.6,1.8390277]
[1759434237579,0.54981482,1073.1,1070.6,1.8390277]
[1759434237781,0.54981482,1073.0,1070.6,1.8390277]
[1759434237978,0.54981482,1072.9,1070.6,1.8390277]
[1759434238178,0.54981482,1072.8,1070.6,1.8390277]
[1759434238382,0.83543447,1073.4,1070.6,1.8390277]
[1759434238578,0.5498444,1073.3,1070.6,1.8390277]
[1759434238782,0.5498444,1073.2,1070.6,1.8390277]
[1759434239078,0.5498444,1073.1,1070.6,1.8390277]
[1759434239277,0.5498444,1073.0,1070.6,1.8390277]
[1759434239479,0.5498444,1072.9,1070.6,1.8390277]
[1759434239681,0.83543447,1073.4,1070.6,1.8390277]
[1759434239883,0.54986083,1073.3,1070.6,1.8390277]
[1759434240080,0.54986083,1073.2,1070.6,1.8390277]
[1759434240283,0.54986083,1073.1,1070.6,1.8390277]
[1759434240484,0.54986083,1073.0,1070.6,1.8390277]
[1759434240680,0.54986083,1072.9,1070.6,1.8390277]
[1759434240885,0.83543447,1073.4,1070.6,1.8390277]
[1759434241183,0.54985806,1073.3,1070.6,1.8390277]
[1759434241384,0.54985806,1073.2,1070.6,1.8390277]
[1759434241582,0.54985806,1073.1,1070.6,1.8390277]
[1759434241787,0.54985806,1073.0,1070.6,1.8390277]
[1759434242085,0.54985806,1072.9,1070.6,1.8390277]
[1759434242286,0.54990225,1072.8,1070.6,1.8390277]
[1759434242584,0.54996777,1072.7,1070.6,1.8390277]
[1759434242782,0.83543447,1073.3,1070.6,1.8390277]
[1759434242986,0.54997193,1073.2,1070.6,1.8390277]
[1759434243184,0.54997193,1073.1,1070.6,1.8390277]